bitfinex-derivatives/quotes_BTCF0:USTF0_20241218
["timestamp","ask_amount","ask_price","bid_price","bid_amount"]
[1734560565980,1.21082458,100910.0,100890.0,0.17735954]
[1734560566185,0.85002458,100910.0,100890.0,0.24036123]
[1734560566587,0.85002458,100910.0,100890.0,0.28994323]
[1734560566787,0.85002458,100910.0,100890.0,0.24035723]
[1734560566992,0.07146691,100900.0,100890.0,0.24045294]
[1734560567492,0.07146691,100900.0,100890.0,0.80990962]
[1734560567692,0.17538384,100900.0,100890.0,0.80990962]
[1734560567890,0.53618384,100900.0,100890.0,0.80990962]
[1734560568284,0.68004242,100900.0,100890.0,0.08139571]
[1734560568487,0.68004242,100900.0,100890.0,9.571e-05]
[1734560569098,0.50465858,100900.0,100890.0,9.571e-05]
[1734560569388,0.50465858,100900.0,100890.0,0.00109571]
[1734560569694,0.79232792,100900.0,100890.0,0.00092294]
[1734560571484,0.049591,100880.0,100870.0,0.18119275]
[1734560571689,0.86538271,100880.0,100870.0,0.18069275]
[1734560572093,1.04039374,100880.0,100870.0,0.18069275]
[1734560572682,0.86538271,100880.0,100870.0,0.18119275]
[1734560573092,0.86538271,100880.0,100870.0,0.18419275]
[1734560573793,0.86538271,100880.0,100870.0,0.18369275]
[1734560574189,0.86538271,100880.0,100870.0,0.09909275]
[1734560574403,0.86538271,100880.0,100870.0,0.01309275]
[1734560574588,1.04005556,100880.0,100870.0,0.01009275]
[1734560574789,1.04005556,100880.0,100870.0,0.01059275]
[1734560575895,1.04005556,100880.0,100870.0,0.01009275]
[1734560576097,1.04836629,100880.0,100870.0,0.01009275]
[1734560576691,1.04836629,100880.0,100870.0,0.01059275]
[1734560577492,1.34836629,100880.0,100870.0,0.01059275]
[1734560577685,1.43506629,100880.0,100870.0,0.01009275]
[1734560578090,1.26039344,100880.0,100870.0,0.01009275]
[1734560579989,1.43481212,100880.0,100870.0,7.5e-07]
[1734560580991,1.43493171,100880.0,100870.0,7.5e-07]
[1734560581301,0.049596,100870.0,100860.0,0.00046075]
[1734560581502,0.50458771,100870.0,100860.0,0.00046075]
[1734560581799,0.04961,100840.0,100830.0,0.30662931]
[1734560581993,0.41041,100840.0,100830.0,0.30662931]
[1734560582194,0.3608,100850.0,100830.0,0.66742931]
[1734560582493,0.50459471,100860.0,100830.0,0.66742931]
[1734560582703,0.11618266,100850.0,100830.0,0.82647599]
[1734560583201,0.11618266,100850.0,100830.0,0.56820958]
[1734560583608,0.11618266,100850.0,100830.0,0.62803626]
[1734560583787,0.11618266,100850.0,100830.0,0.57842626]
[1734560583992,0.04961,100840.0,100830.0,0.57942626]
[1734560584192,0.04417528,100840.0,100830.0,0.57942626]
[1734560584398,0.04417528,100840.0,100830.0,0.56920958]
[1734560584591,0.04417528,100840.0,100830.0,0.56820958]
[1734560584802,0.04417528,100840.0,100830.0,0.56870958]
[1734560585796,0.049606,100850.0,100840.0,0.049608]
[1734560586100,0.47698266,100860.0,100840.0,0.04961]
[1734560586101,0.57619066,100860.0,100840.0,0.04961]
[1734560586306,0.47698266,100860.0,100840.0,0.17769171]
[1734560586495,0.11618266,100860.0,100850.0,0.049605]
[1734560586697,0.11618266,100860.0,100850.0,0.410405]
[1734560587395,0.05108489,100870.0,100860.0,0.0496]
[1734560587597,0.05108489,100870.0,100860.0,0.216]
[1734560589211,0.05308489,100870.0,100860.0,0.216]
[1734560589996,0.05308489,100870.0,100860.0,0.1323]
[1734560590200,0.05308489,100870.0,100860.0,0.0827]
[1734560590201,0.1472766,100870.0,100860.0,0.0827]
[1734560590708,0.05708489,100870.0,100860.0,0.0827]
[1734560590903,0.05708489,100870.0,100860.0,0.1323]
[1734560591708,0.25299047,100880.0,100870.0,0.049596]
[1734560591904,0.25299047,100880.0,100870.0,0.130696]
[1734560592306,0.25299047,100880.0,100860.0,0.45371668]
[1734560592516,0.049596,100870.0,100860.0,0.50331468]
[1734560593004,0.049596,100870.0,100830.0,3.8e-07]
[1734560593005,0.02846182,100850.0,100830.0,3.8e-07]
[1734560593308,0.02846182,100850.0,100820.0,8.439e-05]
[1734560593309,0.049615,100830.0,100820.0,8.439e-05]
[1734560593516,0.50460671,100830.0,100820.0,8.439e-05]
[1734560594407,0.82410903,100830.0,100820.0,0.00408439]
[1734560595012,0.82410903,100830.0,100820.0,0.00508439]
[1734560595910,0.049625,100810.0,100800.0,0.15111577]
[1734560596202,0.410425,100810.0,100800.0,0.15111577]
[1734560596507,0.49755715,100810.0,100800.0,0.16133245]
[1734560597008,0.49855715,100810.0,100800.0,0.16633245]
[1734560597507,0.49755715,100810.0,100800.0,0.16233245]
[1734560598405,0.49755715,100810.0,100800.0,0.16133245]
[1734560598609,0.61373335,100810.0,100800.0,0.16233245]
[1734560599803,0.61373335,100810.0,100800.0,0.16283245]
[1734560600004,0.25293335,100810.0,100800.0,0.16283245]
[1734560600205,0.25293335,100810.0,100800.0,0.24453245]
[1734560600510,0.61373335,100810.0,100800.0,0.24453245]
[1734560602415,0.5266012,100810.0,100800.0,0.24453245]
[1734560604619,0.10595952,100810.0,100800.0,0.32850748]
[1734560604917,0.72992332,100820.0,100810.0,0.049625]
[1734560605320,0.36912332,100820.0,100810.0,0.049625]
[1734560605711,0.049625,100810.0,100800.0,0.23431677]
[1734560606017,0.410425,100810.0,100800.0,0.18468777]
[1734560606812,0.50461671,100810.0,100800.0,0.18368777]
[1734560607210,0.65184504,100810.0,100800.0,0.18368777]
[1734560607416,0.65584504,100810.0,100800.0,0.22341776]
[1734560607813,0.65384504,100810.0,100800.0,0.22142999]
[1734560608019,0.64984504,100810.0,100800.0,0.1817]
[1734560608323,0.64984504,100810.0,100800.0,0.22142999]
[1734560609121,0.64984504,100810.0,100800.0,0.1817]
[1734560609319,0.64984504,100810.0,100800.0,0.1]
[1734560609615,0.65184504,100810.0,100800.0,0.1]
[1734560609822,0.65184504,100810.0,100800.0,0.13972999]
[1734560610020,0.65184504,100810.0,100800.0,0.1]
[1734560610222,0.65584504,100810.0,100800.0,0.1]
[1734560610722,0.64984504,100810.0,100800.0,0.1]
[1734560610920,0.6848907,100810.0,100800.0,0.1]
[1734560611122,0.6848907,100810.0,100790.0,0.04033213]
[1734560611123,0.049635,100790.0,100780.0,0.671337]
[1734560611926,0.049635,100790.0,100780.0,0.671837]
[1734560612423,0.049635,100790.0,100780.0,0.673837]
[1734560612623,0.13673564,100790.0,100780.0,0.673837]
[1734560612919,0.13673564,100790.0,100780.0,0.673337]
[1734560613319,0.13673564,100790.0,100780.0,0.674337]
[1734560613515,0.13773564,100790.0,100780.0,0.674337]
[1734560613715,0.13773564,100790.0,100780.0,0.674837]
[1734560614315,0.13773564,100790.0,100780.0,0.6832619]
[1734560617727,0.13773564,100790.0,100780.0,0.6827619]
[1734560621726,0.13773564,100790.0,100780.0,0.72281649]
[1734560621919,0.050635,100790.0,100780.0,0.72281649]
[1734560622120,0.050635,100790.0,100780.0,0.6827619]
[1734560622328,0.001,100790.0,100780.0,0.6827619]
[1734560622536,0.050635,100790.0,100780.0,0.6827619]
[1734560622724,0.19580274,100790.0,100780.0,0.72281649]
[1734560624316,0.14616774,100790.0,100780.0,0.8170082]
[1734560625022,0.14616774,100790.0,100780.0,0.72281649]
[1734560627132,0.001,100790.0,100780.0,0.72281649]
[1734560627831,0.001,100790.0,100780.0,0.77695361]
[1734560628130,0.31944173,100800.0,100790.0,0.049635]
[1734560628333,0.31944173,100800.0,100790.0,0.45048959]
[1734560628631,0.14516774,100800.0,100790.0,0.45048959]
[1734560629333,0.19479774,100800.0,100790.0,0.45048959]
[1734560629536,0.13733214,100800.0,100790.0,0.45048959]
[1734560630938,0.08770214,100800.0,100790.0,0.45048959]
[1734560632140,0.08770214,100800.0,100790.0,0.53908959]
[1734560637539,0.00011907,100800.0,100790.0,0.53908959]
[1734560639745,0.00011907,100800.0,100790.0,0.6332813]
[1734560641847,0.08907159,100820.0,100810.0,0.049625]
[1734560642042,0.08907159,100820.0,100810.0,0.410425]
[1734560642241,0.08907159,100820.0,100810.0,0.579725]
[1734560642440,0.08907159,100820.0,100810.0,0.61977959]
[1734560642647,0.08758307,100820.0,100810.0,0.61977959]
[1734560642943,0.0877034,100820.0,100810.0,0.61977959]
[1734560643145,0.00312033,100820.0,100810.0,0.61977959]
[1734560644048,0.00312033,100820.0,100810.0,0.62941515]
[1734560644351,0.67828578,100840.0,100820.0,0.04962]
[1734560644543,0.58409407,100840.0,100830.0,0.049615]
[1734560644746,0.49799407,100840.0,100830.0,0.049615]
[1734560645251,0.49807618,100840.0,100830.0,0.049615]
[1734560645745,0.50357618,100840.0,100830.0,0.049615]
[1734560645954,0.14277618,100840.0,100830.0,0.049615]
[1734560646147,0.09116518,100840.0,100830.0,0.049615]
[1734560646346,0.09316518,100840.0,100830.0,0.049615]
[1734560646849,0.09266518,100840.0,100830.0,0.049615]
[1734560647050,0.09266518,100840.0,100830.0,0.410415]
[1734560647242,0.00508211,100840.0,100830.0,0.049615]
[1734560647653,0.00308211,100840.0,100830.0,0.049615]
[1734560647845,0.00558211,100840.0,100830.0,0.049615]
[1734560648040,0.00558211,100840.0,100830.0,0.410415]
[1734560648554,0.00558211,100840.0,100830.0,0.80460671]
[1734560648742,0.00148825,100850.0,100840.0,0.14380171]
[1734560649052,0.00148825,100850.0,100840.0,0.13041]
[1734560649354,0.00148825,100850.0,100840.0,0.49121]
[1734560649753,0.00012095,100850.0,100840.0,0.58550723]
[1734560649954,0.00012095,100850.0,100840.0,0.62556182]
[1734560650152,0.00312095,100850.0,100840.0,0.62556182]
[1734560650855,0.00512095,100850.0,100840.0,0.62556182]
[1734560651854,0.00562095,100850.0,100840.0,0.62556182]
[1734560652051,0.00562095,100850.0,100840.0,0.61877011]
[1734560652446,0.00562095,100850.0,100840.0,0.57871552]
[1734560652948,0.00512095,100850.0,100840.0,0.57871552]
[1734560653949,0.00562095,100850.0,100840.0,0.57871552]
[1734560654652,0.00362095,100850.0,100840.0,0.57871552]
[1734560654856,0.00012095,100850.0,100840.0,0.57971552]
[1734560655861,0.00062095,100850.0,100840.0,0.57971552]
[1734560656961,0.00012095,100850.0,100840.0,0.57971552]
[1734560658566,0.04972595,100850.0,100840.0,0.57971552]
[1734560658859,0.00012095,100850.0,100840.0,0.49891552]
[1734560669273,0.00012095,100850.0,100840.0,0.59310723]
[1734560669464,0.00012095,100850.0,100840.0,0.63316182]
[1734560670266,0.00012095,100850.0,100840.0,0.93316182]
[1734560670466,0.20413907,100870.0,100860.0,0.0496]
[1734560670666,0.20413907,100870.0,100860.0,0.4104]
[1734560671171,0.08758307,100870.0,100860.0,0.4104]
[1734560671376,0.08765247,100870.0,100860.0,0.4104]
[1734560671676,0.08765247,100870.0,100860.0,0.9104463]
[1734560671875,0.08765247,100870.0,100860.0,0.87039171]
[1734560672076,6.94e-05,100870.0,100860.0,0.87039171]
[1734560672680,0.20457007,100880.0,100870.0,0.049596]
[1734560672879,0.14516774,100890.0,100880.0,0.049591]
[1734560673176,0.20448169,100890.0,100880.0,0.59668271]
[1734560673770,0.20459786,100890.0,100880.0,0.59668271]
[1734560673977,0.20509786,100890.0,100880.0,0.59868271]
[1734560674280,0.00061617,100890.0,100880.0,0.59868271]
[1734560674483,0.00161617,100890.0,100880.0,0.60368271]
[1734560674981,0.00111617,100890.0,100880.0,0.60368271]
[1734560675476,0.00111617,100890.0,100880.0,0.90368271]
[1734560675873,0.00161617,100890.0,100880.0,0.90368271]
[1734560676179,0.00161617,100890.0,100880.0,0.99398271]
[1734560676880,0.00111617,100890.0,100880.0,0.99398271]
[1734560677873,0.00161617,100890.0,100880.0,0.99398271]
[1734560678669,0.00161617,100890.0,100880.0,0.9993458]
[1734560679971,0.00111617,100890.0,100880.0,0.9993458]
[1734560680881,0.1005,100900.0,100890.0,0.049586]
[1734560681179,0.1005,100900.0,100890.0,0.50457771]
[1734560681571,0.1005,100900.0,100890.0,0.59876942]
[1734560681872,0.10010814,100900.0,100890.0,0.59876942]
[1734560682380,0.10010814,100900.0,100890.0,0.50457771]
[1734560682569,0.10010814,100900.0,100890.0,0.50557771]
[1734560682771,0.10010814,100900.0,100890.0,0.59976942]
[1734560682978,0.01,100930.0,100920.0,0.049571]
[1734560683272,0.01,100930.0,100920.0,0.50456271]
[1734560683977,0.01307118,100930.0,100920.0,0.50464019]
[1734560684280,0.01507118,100930.0,100920.0,0.50464019]
[1734560687985,0.01507118,100930.0,100920.0,0.45506919]
[1734560689779,0.01507118,100930.0,100920.0,0.46051322]
[1734560689979,0.01557118,100930.0,100920.0,0.36632151]
[1734560691085,0.01557118,100930.0,100920.0,0.46051322]
[1734560691687,0.01557118,100930.0,100920.0,0.55470493]
[1734560692980,0.01257118,100930.0,100920.0,0.55470493]
[1734560693179,0.01557118,100930.0,100920.0,0.55470493]
[1734560696788,0.01557118,100930.0,100920.0,0.57434972]
[1734560696982,0.01507118,100930.0,100920.0,0.57434972]
[1734560697883,0.0005,100940.0,100920.0,0.57434972]
[1734560698092,0.0005,100940.0,100930.0,0.55169171]
[1734560698888,8.624e-05,100940.0,100930.0,0.55169171]
[1734560699493,0.00108624,100940.0,100930.0,0.55169171]
[1734560700186,8.624e-05,100940.0,100930.0,0.55169171]
[1734560700487,0.14516774,100970.0,100930.0,0.94588342]
[1734560700683,0.1071267,100970.0,100960.0,0.81579171]
[1734560701086,0.09598622,100980.0,100960.0,0.81579171]
[1734560701279,0.09598622,100980.0,100970.0,0.3608]
[1734560701479,0.09598622,100980.0,100960.0,0.45499171]
[1734560701691,0.45687575,100980.0,100960.0,0.3608]
[1734560702189,0.75687575,100980.0,100950.0,0.09419171]
[1734560702394,0.001,100970.0,100950.0,0.45499171]
[1734560702889,0.0005,100960.0,100950.0,0.40054772]
[1734560703395,0.0956,100960.0,100950.0,0.40054772]
[1734560703891,0.0951,100960.0,100950.0,0.45499171]
[1734560704081,0.0961,100960.0,100950.0,0.46208991]
[1734560704786,0.0981,100960.0,100950.0,0.46208991]
[1734560706082,0.1881,100960.0,100950.0,0.46208991]
[1734560710597,0.1861,100960.0,100950.0,0.46408991]
[1734560710896,0.1861,100960.0,100950.0,0.3698982]
[1734560711298,0.1861,100960.0,100950.0,0.0090982]
[1734560711895,0.1851,100960.0,100950.0,0.0090982]
[1734560712894,0.1851,100960.0,100950.0,0.3698982]
[1734560713101,0.1851,100960.0,100950.0,0.10328991]
[1734560713488,1.49444124,100960.0,100920.0,7.748e-05]
[1734560713694,0.3608,100930.0,100920.0,7.748e-05]
[1734560714199,0.85199171,100930.0,100920.0,1e-08]
[1734560714900,0.96106342,100930.0,100900.0,0.0005]
[1734560715099,0.81579171,100910.0,100890.0,0.00855999]
[1734560715297,0.3608,100900.0,100890.0,0.00855999]
[1734560715707,0.75499171,100900.0,100890.0,0.00148666]
[1734560715897,0.75510464,100900.0,100890.0,0.00148666]
[1734560716197,0.75510464,100900.0,100870.0,0.36941702]
[1734560716400,0.3608,100890.0,100870.0,0.00861702]
[1734560716598,0.3608,100880.0,100870.0,0.00861702]
[1734560716796,0.3608,100880.0,100870.0,0.01576402]
[1734560717398,0.3608,100880.0,100870.0,0.02476402]
[1734560717797,0.45499171,100880.0,100870.0,0.02476402]
[1734560718000,0.45499171,100880.0,100870.0,0.03376402]
[1734560718596,0.45499171,100880.0,100870.0,0.0085]
[1734560719106,0.45599171,100880.0,100870.0,0.0175]
[1734560719603,0.84989171,100880.0,100870.0,0.0265]
[1734560719911,0.84989171,100880.0,100870.0,0.027]
[1734560720408,0.84989171,100880.0,100870.0,0.0185]
[1734560721004,0.84989171,100880.0,100850.0,0.00719833]
[1734560721199,0.45005056,100870.0,100850.0,0.00719833]
[1734560721608,0.75005056,100870.0,100850.0,0.00719833]
[1734560721912,0.45499171,100860.0,100850.0,0.00719833]
[1734560722406,0.45499171,100860.0,100850.0,0.01119833]
[1734560723002,0.45499171,100860.0,100850.0,0.00719833]
[1734560723311,0.45699171,100860.0,100850.0,0.01119833]
[1734560724601,0.45708609,100860.0,100850.0,0.01119833]
[1734560725710,0.09628609,100860.0,100850.0,0.01119833]
[1734560726008,0.45708609,100860.0,100850.0,0.01119833]
[1734560730109,0.4641026,100860.0,100850.0,0.01119833]
[1734560733305,0.7641026,100860.0,100850.0,0.01119833]
[1734560733612,0.4641026,100860.0,100850.0,0.00407415]
[1734560733916,0.7641026,100860.0,100850.0,0.00407415]
[1734560734613,0.7641026,100860.0,100850.0,7.415e-05]
[1734560734614,0.7631026,100860.0,100850.0,7.415e-05]
[1734560734817,0.85829431,100860.0,100850.0,0.00291542]
[1734560735019,0.85829431,100860.0,100850.0,0.00341542]
[1734560735020,0.95339431,100860.0,100850.0,0.00341542]
[1734560736414,0.95439431,100860.0,100850.0,0.0005]
[1734560738117,0.95239431,100860.0,100830.0,0.09605921]
[1734560738302,0.3608,100840.0,100830.0,0.09605921]
[1734560738907,0.45499171,100840.0,100820.0,0.19579358]
[1734560739109,0.09419171,100830.0,100820.0,0.19579358]
[1734560739314,0.45499171,100840.0,100820.0,0.20284934]
[1734560739516,0.45599171,100840.0,100820.0,0.20284934]
[1734560740508,0.09419171,100830.0,100820.0,0.20284934]
[1734560741013,0.09419171,100830.0,100820.0,0.20484934]
[1734560741607,0.09419171,100830.0,100820.0,0.20584934]
[1734560742112,0.09519171,100830.0,100820.0,0.20584934]
[1734560742313,0.001,100830.0,100820.0,0.20584934]
[1734560742723,0.3608,100840.0,100820.0,0.20584934]
[1734560742914,0.45499171,100840.0,100820.0,0.20634934]
[1734560743304,0.09419171,100830.0,100820.0,0.20634934]
[1734560743509,0.45499171,100840.0,100820.0,0.20634934]
[1734560743715,0.45499171,100840.0,100820.0,0.24241508]
[1734560743904,0.45499171,100840.0,100820.0,0.20284934]
[1734560744108,0.45499171,100840.0,100820.0,0.20484934]
[1734560745006,0.45599171,100840.0,100820.0,0.20534934]
[1734560745714,0.57192652,100840.0,100820.0,0.20534934]
[1734560745911,0.57192652,100840.0,100820.0,0.20484934]
[1734560746716,0.71668779,100840.0,100820.0,0.20484934]
[1734560747017,0.71668779,100840.0,100820.0,0.20336187]
[1734560747420,1.01668779,100840.0,100820.0,0.20336187]
[1734560747720,1.02363671,100840.0,100820.0,0.23942761]
[1734560748111,0.87887544,100840.0,100820.0,0.23942761]
[1734560748519,0.09419171,100830.0,100820.0,0.23237185]
[1734560748710,0.09419171,100830.0,100820.0,0.13647185]
[1734560749619,0.09530645,100830.0,100820.0,0.13647185]
[1734560750022,0.09530645,100830.0,100820.0,0.13447185]
[1734560750216,0.09530645,100830.0,100820.0,0.13747185]
[1734560752107,0.55029816,100830.0,100820.0,0.03917185]
[1734560752313,0.45610645,100830.0,100820.0,0.03917185]
[1734560752916,0.36191474,100830.0,100820.0,0.03917185]
[1734560753116,0.45610645,100830.0,100820.0,0.03917185]
[1734560753318,0.57204126,100830.0,100820.0,0.03917185]
[1734560753918,0.57204126,100830.0,100820.0,0.00310611]
[1734560756123,0.47784955,100830.0,100820.0,0.00310611]
[1734560756421,0.31903526,100840.0,100820.0,0.75809782]
[1734560756619,0.20516934,100860.0,100830.0,0.18909171]
[1734560757011,0.20516934,100860.0,100830.0,0.54989171]
[1734560757524,0.0001043,100850.0,100840.0,0.09419171]
[1734560757825,0.61238685,100870.0,100840.0,0.45499171]
[1734560758031,0.56585686,100890.0,100860.0,0.09419171]
[1734560758032,0.36181,100890.0,100860.0,0.09419171]
[1734560758210,0.36181,100890.0,100860.0,0.10382727]
[1734560758417,0.36181,100890.0,100860.0,0.09419171]
[1734560758616,0.0001098,100880.0,100850.0,0.46462727]
[1734560758822,0.0001098,100880.0,100860.0,0.09419171]
[1734560759026,0.0006098,100880.0,100850.0,0.46462727]
[1734560759222,0.002,100860.0,100850.0,0.67043556]
[1734560759524,0.0006098,100880.0,100850.0,0.76462727]
[1734560759724,0.0016098,100880.0,100870.0,0.3608]
[1734560760121,0.0011098,100880.0,100870.0,0.3608]
[1734560761027,0.0016098,100880.0,100870.0,0.4578]
[1734560761926,0.0016098,100880.0,100870.0,0.9767929]
[1734560762120,0.0011098,100880.0,100870.0,0.9767929]
[1734560762328,0.0001098,100880.0,100870.0,0.9797929]
[1734560762713,0.0001098,100880.0,100870.0,1.07398461]
[1734560762925,0.00101,100890.0,100870.0,1.37398461]
[1734560763121,0.0005,100880.0,100870.0,1.42358061]
[1734560763426,0.3608,100900.0,100890.0,0.049586]
[1734560764024,0.36086815,100900.0,100890.0,0.049586]
[1734560764525,6.815e-05,100900.0,100890.0,0.59887651]
[1734560764720,6.815e-05,100900.0,100890.0,0.8046848]
[1734560764919,6.815e-05,100900.0,100890.0,1.2183068]
[1734560765126,0.36228727,100920.0,100890.0,1.2183068]
[1734560765421,0.36228727,100920.0,100910.0,0.049576]
[1734560766420,0.36728727,100920.0,100910.0,0.049576]
[1734560766814,0.36628727,100920.0,100910.0,0.049576]
[1734560767020,0.37128727,100920.0,100910.0,0.14476771]
[1734560767324,0.37128727,100920.0,100910.0,0.32203428]
[1734560767723,0.009,100920.0,100910.0,0.68283428]
[1734560768124,0.01066,100940.0,100930.0,0.049566]
[1734560768322,0.01066,100940.0,100930.0,0.410366]
[1734560768523,0.01066,100940.0,100930.0,0.049566]
[1734560768723,0.01066,100940.0,100930.0,0.410366]
[1734560769024,0.01066,100940.0,100930.0,0.50455771]
[1734560769421,0.01466,100940.0,100930.0,0.50455771]
[1734560769619,0.01466,100940.0,100930.0,0.59645771]
[1734560769933,0.005,100940.0,100930.0,0.59645771]
[1734560770436,0.005,100940.0,100930.0,0.89645771]
[1734560771537,0.46327738,100970.0,100930.0,0.89645771]
[1734560771725,0.46327738,100970.0,100960.0,0.049551]
[1734560772823,0.53163121,100980.0,100970.0,0.049546]
[1734560772824,0.36228622,100980.0,100970.0,0.049546]
[1734560773025,0.00148622,100980.0,100970.0,0.049546]
[1734560773932,0.36728622,100980.0,100970.0,0.049546]
[1734560774137,0.00848622,100980.0,100970.0,0.049546]
[1734560775730,0.00848622,100980.0,100960.0,0.59722881]
[1734560775731,0.00848622,100980.0,100960.0,8.61e-05]
[1734560775932,0.45499171,100970.0,100960.0,8.61e-05]
[1734560776131,0.60413771,100970.0,100960.0,8.61e-05]
[1734560776334,0.509946,100970.0,100960.0,8.61e-05]
[1734560777130,0.513946,100970.0,100960.0,8.61e-05]
[1734560777438,0.60813771,100970.0,100960.0,8.61e-05]
[1734560777731,0.513946,100970.0,100960.0,8.61e-05]
[1734560778542,0.516946,100970.0,100960.0,8.61e-05]
[1734560779130,0.516946,100970.0,100960.0,0.0496371]
[1734560780134,0.517446,100970.0,100960.0,0.0496371]
[1734560787238,0.0075,100970.0,100960.0,0.14382881]
[1734560788249,0.007,100970.0,100960.0,0.14382881]
[1734560792936,0.007,100970.0,100960.0,0.32109538]
[1734560793532,0.007,100970.0,100960.0,0.68189538]
[1734560794443,0.007,100970.0,100960.0,0.77589538]
[1734560794840,0.007,100970.0,100960.0,1.01225081]
[1734560796236,0.007,100970.0,100960.0,1.04975511]
[1734560797646,0.007,100970.0,100960.0,0.53349243]
[1734560798645,0.007,100970.0,100960.0,1.04975511]
[1734560799539,0.007,100970.0,100960.0,1.06954777]
[1734560800236,0.007,100970.0,100960.0,0.77388415]
[1734560801641,0.007,100970.0,100960.0,0.61287698]
[1734560802547,0.007,100970.0,100960.0,0.79703425]
[1734560802744,0.007,100970.0,100960.0,0.77388415]
[1734560804559,0.007,100970.0,100960.0,1.13468415]
[1734560804851,0.007,100970.0,100960.0,0.77388415]
[1734560806352,0.007,100970.0,100960.0,1.13468415]
[1734560807551,0.007,100970.0,100960.0,0.77388415]
[1734560808152,0.007,100970.0,100960.0,0.67969244]
[1734560808349,0.007,100970.0,100960.0,0.77388415]
[1734560812048,0.007,100970.0,100960.0,1.13468415]
[1734560812653,0.007,100970.0,100960.0,0.77942864]
[1734560814554,0.08768552,100990.0,100960.0,1.07942864]
[1734560814755,1.5e-07,101010.0,101000.0,0.049532]
[1734560814949,0.17362799,101020.0,101010.0,0.049527]
[1734560815155,0.17362799,101020.0,101010.0,0.59871042]
[1734560816256,0.0954,101030.0,101010.0,0.75971759]
[1734560816560,0.0954,101030.0,101020.0,0.09419171]
[1734560817562,0.0954,101030.0,101020.0,0.25519888]
[1734560817764,0.0954,101030.0,101020.0,0.30472088]
[1734560817952,0.0994,101030.0,101020.0,0.30472088]
[1734560818553,0.006,101030.0,101020.0,0.66552088]
[1734560818951,0.006,101030.0,101020.0,0.76022088]
[1734560820460,0.006,101030.0,101020.0,0.76572995]
[1734560822068,0.006,101030.0,101020.0,1.11963224]
[1734560823361,0.01,101040.0,101030.0,0.049517]
[1734560823567,0.01,101040.0,101030.0,0.60060871]
[1734560824367,0.3608,101060.0,101050.0,0.049507]
[1734560824569,0.3608,101070.0,101060.0,0.049502]
[1734560824757,0.01154857,101060.0,101050.0,1.19218018]
[1734560824957,0.01154857,101060.0,101050.0,1.28637189]
[1734560825164,0.01154857,101060.0,101050.0,1.64717189]
[1734560825980,0.01154857,101060.0,101050.0,1.28637189]
[1734560826187,0.01354857,101060.0,101050.0,2.33815711]
[1734560826689,0.01354857,101060.0,101050.0,2.43065711]
[1734560827073,0.01354857,101060.0,101050.0,2.19527828]
[1734560829689,0.01354857,101060.0,101050.0,2.43020172]
[1734560830483,0.01354857,101060.0,101050.0,2.43676028]
[1734560830678,0.4556,101080.0,101070.0,0.049497]
[1734560830879,0.4556,101080.0,101070.0,0.14368871]
[1734560831080,0.4556,101080.0,101070.0,0.22488793]
[1734560831281,0.4556,101080.0,101070.0,1.28514488]
[1734560831686,0.4556,101080.0,101070.0,1.28636189]
[1734560831887,0.4576,101080.0,101070.0,1.28636189]
[1734560833192,0.4606,101080.0,101070.0,1.28636189]
[1734560833496,0.4576,101080.0,101070.0,1.28636189]
[1734560833785,0.4606,101080.0,101070.0,1.28636189]
[1734560833985,0.85479171,101080.0,101070.0,0.53907318]
[1734560834196,0.90428371,101080.0,101070.0,0.12229466]
[1734560834383,0.90428371,101080.0,101070.0,0.01319466]
[1734560834589,0.049499,101070.0,101060.0,0.049502]
[1734560834783,0.4606,101080.0,101060.0,0.14369371]
[1734560834989,0.4606,101080.0,101070.0,0.049497]
[1734560834990,0.4586,101080.0,101070.0,0.049497]
[1734560835187,0.4606,101080.0,101070.0,0.049497]
[1734560835887,0.3628,101080.0,101070.0,0.049497]
[1734560836078,0.3658,101080.0,101070.0,0.147997]
[1734560836483,0.3628,101080.0,101070.0,0.147997]
[1734560836785,0.3658,101080.0,101070.0,0.147997]
[1734560836985,0.3658,101080.0,101070.0,0.24218871]
[1734560837185,0.005,101080.0,101070.0,0.25538337]
[1734560837899,0.005,101080.0,101070.0,0.71037508]
[1734560838190,0.005,101080.0,101070.0,0.79220404]
[1734560838694,0.005,101080.0,101070.0,0.52559575]
[1734560839394,0.005,101080.0,101070.0,0.43140404]
[1734560839780,0.005,101080.0,101070.0,0.33721233]
[1734560839986,0.005,101080.0,101070.0,0.88639575]
[1734560840193,0.0055,101080.0,101070.0,0.52559575]
[1734560841001,0.0055,101080.0,101070.0,0.88639575]
[1734560841195,0.46228455,101100.0,101090.0,0.049488]
[1734560841385,0.10148455,101100.0,101090.0,0.14367971]
[1734560841791,0.1,101100.0,101090.0,0.14367971]
[1734560842791,0.103,101100.0,101090.0,0.14367971]
[1734560843191,0.03660992,101100.0,101090.0,0.23787142]
[1734560843389,0.3608,101110.0,101100.0,0.049483]
[1734560843700,0.3608,101120.0,101110.0,0.049475]
[1734560843894,0.3608,101120.0,101110.0,0.14366671]
[1734560844087,0.3608,101140.0,101110.0,0.14366671]
[1734560844292,0.3608,101140.0,101130.0,0.14365971]
[1734560845899,0.3608,101140.0,101130.0,0.23785142]
[1734560846099,0.36228406,101160.0,101140.0,0.049463]
[1734560846294,0.36228406,101160.0,101150.0,0.14364971]
[1734560846494,0.36228406,101160.0,101150.0,0.049458]
[1734560846993,0.00148406,101160.0,101150.0,0.14364971]
[1734560847395,0.00248406,101160.0,101150.0,0.14364971]
[1734560847994,0.00248406,101160.0,101150.0,0.59864142]
[1734560848197,0.00248406,101160.0,101150.0,0.60364971]
[1734560848405,0.00248406,101160.0,101150.0,0.69784142]
[1734560848804,0.00248406,101160.0,101150.0,0.71103608]
[1734560848998,0.00148406,101160.0,101150.0,0.71103608]
[1734560849302,0.00248406,101160.0,101150.0,0.71103608]
[1734560849507,0.00248406,101160.0,101150.0,0.94595952]
[1734560849701,0.001,101160.0,101150.0,0.94595952]
[1734560850105,0.3678,101190.0,101150.0,0.93276486]
[1734560850299,0.3678,101190.0,101180.0,0.14363571]
[1734560850500,0.3608,101190.0,101180.0,0.14363571]
[1734560851207,0.4608,101200.0,101180.0,0.14363571]
[1734560851407,0.4608,101200.0,101190.0,0.09419171]
[1734560851802,0.4608,101200.0,101190.0,0.14363071]
[1734560852209,0.4608,101200.0,101190.0,0.049439]
[1734560852414,0.4608,101200.0,101190.0,0.14363071]
[1734560853011,0.4618,101200.0,101190.0,0.14363071]
[1734560853612,0.4608,101200.0,101190.0,0.14363071]
[1734560853801,0.4618,101200.0,101190.0,0.14363071]
[1734560854503,0.101,101200.0,101190.0,0.33542242]
[1734560854906,0.101,101200.0,101190.0,0.69622242]
[1734560855207,0.1015,101200.0,101190.0,0.33542242]